[Event "Amateur Tournament (ATO)"]
[Site "Biel, Switzerland"]
[Date "2026.07.17"]
[Round "4.3"]
[White "Coletta, Julien"]
[Black "Czarkowski, Dawid"]
[Result "1/2-1/2"]
[TimeControl "90+30+30sec/move"]
[WhiteTitle "-"]
[BlackTitle "-"]
[WhiteFideId "1342223"]
[BlackFideId "545067392"]
[WhiteElo "1889"]
[BlackElo "1713"]

1. e4 {[%clk 01:30:57]} {[%emt 00:00:02]} c5 {[%clk 01:30:57]} {[%emt
00:00:04]} 2. Nf3 {[%clk 01:31:15]} {[%emt 00:00:11]} d6 {[%clk 01:31:17]}
{[%emt 00:00:11]} 3. Bb5+ {[%clk 01:31:29]} {[%emt 00:00:16]} Bd7 {[%clk
01:31:25]} {[%emt 00:00:22]} 4. Bxd7+ {[%clk 01:31:47]} {[%emt 00:00:12]} Qxd7
{[%clk 01:31:25]} {[%emt 00:00:30]} 5. O-O {[%clk 01:31:53]} {[%emt 00:00:24]}
Nc6 {[%clk 01:29:53]} {[%emt 00:02:03]} 6. Re1 {[%clk 01:29:39]} {[%emt
00:02:42]} e6 {[%clk 01:27:33]} {[%emt 00:02:51]} 7. c4 {[%clk 01:28:37]}
{[%emt 00:01:32]} g6 {[%clk 01:25:03]} {[%emt 00:03:00]} 8. d4 {[%clk
01:25:41]} {[%emt 00:03:27]} cxd4 {[%clk 01:25:04]} {[%emt 00:00:29]} 9. Nxd4
{[%clk 01:26:02]} {[%emt 00:00:08]} Bg7 {[%clk 01:24:22]} {[%emt 00:01:11]} 10.
Be3 {[%clk 01:24:46]} {[%emt 00:01:47]} a6 {[%clk 01:19:51]} {[%emt 00:05:02]}
11. Nc3 {[%clk 01:22:47]} {[%emt 00:02:29]} Nge7 {[%clk 01:11:55]} {[%emt
00:08:24]} 12. f3 {[%clk 01:08:07]} {[%emt 00:15:11]} O-O {[%clk 01:08:39]}
{[%emt 00:03:46]} 13. Nde2 {[%clk 01:00:53]} {[%emt 00:07:44]} Rfd8 {[%clk
00:53:24]} {[%emt 00:15:44]} 14. Bb6 {[%clk 00:55:10]} {[%emt 00:06:13]} Rf8
{[%clk 00:52:25]} {[%emt 00:01:30]} 15. Qd2 {[%clk 00:53:57]} {[%emt 00:01:43]}
Ne5 {[%clk 00:50:17]} {[%emt 00:02:36]} 16. b3 {[%clk 00:53:48]} {[%emt
00:00:41]} Qc6 {[%clk 00:46:14]} {[%emt 00:04:33]} 17. Be3 {[%clk 00:47:36]}
{[%emt 00:06:42]} Rfd8 {[%clk 00:42:55]} {[%emt 00:03:49]} 18. Rac1 {[%clk
00:45:18]} {[%emt 00:02:48]} b6 {[%clk 00:38:47]} {[%emt 00:04:37]} 19. Red1
{[%clk 00:38:31]} {[%emt 00:07:17]} Rd7 {[%clk 00:33:44]} {[%emt 00:05:34]} 20.
Na4 {[%clk 00:30:11]} {[%emt 00:08:50]} Rb8 {[%clk 00:30:11]} {[%emt 00:04:03]}
21. h3 {[%clk 00:25:10]} {[%emt 00:05:31]} Qc7 {[%clk 00:25:41]} {[%emt
00:05:00]} 22. Nf4 {[%clk 00:21:36]} {[%emt 00:04:04]} Rb7 {[%clk 00:21:02]}
{[%emt 00:05:09]} 23. Qf2 {[%clk 00:21:07]} {[%emt 00:00:59]} Nc8 {[%clk
00:20:03]} {[%emt 00:01:29]} 24. Nd5 {[%clk 00:14:33]} {[%emt 00:07:04]} exd5
{[%clk 00:18:47]} {[%emt 00:01:46]} 25. cxd5 {[%clk 00:14:56]} {[%emt
00:00:07]} Qd8 {[%clk 00:18:27]} {[%emt 00:00:50]} 26. f4 {[%clk 00:15:03]}
{[%emt 00:00:23]} b5 {[%clk 00:15:10]} {[%emt 00:03:47]} 27. Nb2 {[%clk
00:14:13]} {[%emt 00:01:20]} Rdc7 {[%clk 00:11:42]} {[%emt 00:03:57]} 28. fxe5
{[%clk 00:13:57]} {[%emt 00:00:47]} Bxe5 {[%clk 00:10:59]} {[%emt 00:01:13]} 29.
Nd3 {[%clk 00:13:28]} {[%emt 00:00:59]} Bc3 {[%clk 00:08:52]} {[%emt 00:02:36]}
30. Rc2 {[%clk 00:05:30]} {[%emt 00:08:29]} b4 {[%clk 00:07:26]} {[%emt
00:01:56]} 31. Rdc1 {[%clk 00:05:02]} {[%emt 00:00:58]} Qe7 {[%clk 00:06:31]}
{[%emt 00:01:25]} 32. Qf4 {[%clk 00:03:30]} {[%emt 00:02:01]} Na7 {[%clk
00:03:57]} {[%emt 00:03:04]} 33. a4 {[%clk 00:02:37]} {[%emt 00:01:24]} a5
{[%clk 00:02:16]} {[%emt 00:02:10]} 34. Bf2 {[%clk 00:02:01]} {[%emt 00:01:06]}
f6 {[%clk 00:01:43]} {[%emt 00:01:04]} 35. Kh2 {[%clk 00:01:39]} {[%emt
00:00:52]} g5 {[%clk 00:00:35]} {[%emt 00:01:38]} 36. Qf5 {[%clk 00:01:09]}
{[%emt 00:01:01]} Kg7 {[%clk 00:00:35]} {[%emt 00:00:28]} 37. h4 {[%clk
00:01:05]} {[%emt 00:00:35]} h5 {[%clk 00:00:38]} {[%emt 00:00:27]} 38. hxg5
{[%clk 00:01:02]} {[%emt 00:00:33]} fxg5 {[%clk 00:01:05]} {[%emt 00:00:03]} 39.
Be3 {[%clk 00:01:07]} {[%emt 00:00:25]} Kh6 {[%clk 00:00:50]} {[%emt 00:00:44]}
40. g3 {[%clk 00:00:38]} Qg7 {[%clk 00:00:35]} {[%emt 00:01:44]} 41. Qe6+
{[%clk 00:20:22]} Qg6 {[%clk 00:31:00]} {[%emt 00:11:52]} 42. Qxg6+ {[%clk
00:20:43]} Kxg6 {[%clk 00:31:22]} {[%emt 00:00:17]} 43. Bd4 {[%clk 00:21:02]}
Re7 {[%clk 00:25:05]} {[%emt 00:06:57]} 44. Bxc3 {[%clk 00:20:49]} bxc3 {[%clk
00:25:26]} {[%emt 00:00:53]} 45. e5 {[%clk 00:16:43]} dxe5 {[%clk 00:12:50]}
{[%emt 00:17:42]} 46. Rxc3 {[%clk 00:16:49]} Rbd7 {[%clk 00:10:56]} {[%emt
00:02:48]} 47. Rc5 {[%clk 00:15:48]} e4 {[%clk 00:09:54]} {[%emt 00:03:03]} 48.
Ne1 {[%clk 00:15:26]} Re5 {[%clk 00:06:27]} {[%emt 00:04:50]} 49. Rd1 {[%clk
00:14:47]} Rf5 {[%clk 00:05:28]} {[%emt 00:02:38]} 50. Rxa5 {[%clk 00:12:37]}
Rf2+ {[%clk 00:02:56]} {[%emt 00:05:41]} 51. Kg1 {[%clk 00:11:26]} Rb2 {[%clk
00:01:48]} {[%emt 00:03:18]} 52. d6 {[%clk 00:09:22]} Rxb3 {[%clk 00:00:53]}
{[%emt 00:04:00]} 53. Rxa7 {[%clk 00:05:47]} Rxa7 {[%clk 00:01:20]} {[%emt
00:04:09]} 54. d7 {[%clk 00:06:14]} Rb8 {[%clk 00:01:05]} {[%emt 00:00:47]} 55.
d8=Q {[%clk 00:06:20]} Rxd8 {[%clk 00:01:33]} {[%emt 00:00:26]} 56. Rxd8 {[%clk
00:06:42]} Rxa4 {[%clk 00:01:46]} {[%emt 00:00:25]} 57. Rd5 {[%clk 00:05:52]}
Ra2 {[%clk 00:00:49]} {[%emt 00:02:47]} 58. Re5 {[%clk 00:05:34]} Re2 {[%clk
00:00:37]} {[%emt 00:01:30]} 59. Kf1 {[%clk 00:05:28]} Kf6 {[%clk 00:00:45]}
{[%emt 00:00:58]} 60. Kxe2 {[%clk 00:04:33]} Kxe5 {[%clk 00:01:08]} {[%emt
00:01:32]} 61. Ng2 {[%clk 00:04:10]} Kd4 {[%clk 00:00:57]} {[%emt 00:01:34]} 62.
Kd2 {[%clk 00:03:26]} Ke5 {[%clk 00:00:53]} {[%emt 00:01:49]} 63. Ke2 {[%clk
00:03:02]} Kd4 {[%clk 00:01:07]} {[%emt 00:01:09]} 64. Kd2 {[%clk 00:02:50]}
Kd5 {[%clk 00:00:51]} {[%emt 00:01:28]} 65. Ke2 {[%clk 00:02:50]} Ke5 {[%clk
00:00:46]} {[%emt 00:01:05]} 66. Ne3 {[%clk 00:03:14]} Kf6 {[%clk 00:00:40]}
{[%emt 00:00:41]} 67. Kf2 {[%clk 00:03:04]} Ke5 {[%clk 00:00:57]} {[%emt
00:00:54]} 68. Ke2 {[%clk 00:03:30]} Kf6 {[%clk 00:00:38]} {[%emt 00:00:53]} 69.
Kf2 {[%clk 00:03:54]} Ke5 {[%clk 00:00:50]} {[%emt 00:00:25]} 1/2-1/2

[Event "Amateur Tournament (ATO)"]
[Site "Biel, Switzerland"]
[Date "2026.07.17"]
[Round "4.4"]
[White "Pinelli, Gian"]
[Black "Jud, Marc"]
[Result "1/2-1/2"]
[TimeControl "90+30+30sec/move"]
[WhiteTitle "-"]
[BlackTitle "-"]
[WhiteFideId "1348710"]
[BlackFideId "1309099"]
[WhiteElo "1824"]
[BlackElo "1991"]

1. e4 {[%clk 01:30:56]} {[%emt 00:00:04]} c5 {[%clk 01:30:52]} {[%emt
00:00:08]} 2. Nf3 {[%clk 01:31:19]} {[%emt 00:00:07]} d6 {[%clk 01:31:11]}
{[%emt 00:00:12]} 3. d4 {[%clk 01:31:42]} {[%emt 00:00:07]} cxd4 {[%clk
01:31:28]} {[%emt 00:00:13]} 4. Nxd4 {[%clk 01:32:02]} {[%emt 00:00:09]} Nf6
{[%clk 01:31:50]} {[%emt 00:00:08]} 5. Nc3 {[%clk 01:32:12]} {[%emt 00:00:20]}
a6 {[%clk 01:32:10]} {[%emt 00:00:10]} 6. Rg1 {[%clk 01:32:23]} {[%emt
00:00:19]} e5 {[%clk 01:32:12]} {[%emt 00:00:28]} 7. Nb3 {[%clk 01:32:44]}
{[%emt 00:00:09]} h5 {[%clk 01:32:06]} {[%emt 00:00:36]} 8. Be3 {[%clk
01:32:30]} {[%emt 00:00:44]} Be6 {[%clk 01:30:42]} {[%emt 00:01:54]} 9. h3
{[%clk 01:32:19]} {[%emt 00:00:42]} d5 {[%clk 01:28:57]} {[%emt 00:02:15]} 10.
exd5 {[%clk 01:32:29]} {[%emt 00:00:20]} Nxd5 {[%clk 01:29:12]} {[%emt
00:00:15]} 11. Nxd5 {[%clk 01:31:49]} {[%emt 00:01:09]} Qxd5 {[%clk 01:25:32]}
{[%emt 00:04:10]} 12. Qxd5 {[%clk 01:32:07]} {[%emt 00:00:12]} Bxd5 {[%clk
01:25:59]} {[%emt 00:00:04]} 13. O-O-O {[%clk 01:30:28]} {[%emt 00:02:09]} Be6
{[%clk 01:25:57]} {[%emt 00:00:32]} 14. g3 {[%clk 01:10:26]} {[%emt 00:20:32]}
Nc6 {[%clk 01:15:20]} {[%emt 00:11:07]} 15. Bg2 {[%clk 01:10:21]} {[%emt
00:00:35]} Rc8 {[%clk 01:11:27]} {[%emt 00:04:23]} 16. Bxc6+ {[%clk 01:08:54]}
{[%emt 00:01:57]} bxc6 {[%clk 01:10:02]} {[%emt 00:01:55]} 17. Nc5 {[%clk
01:03:35]} {[%emt 00:05:49]} Bxc5 {[%clk 01:04:55]} {[%emt 00:05:37]} 18. Bxc5
{[%clk 01:04:02]} {[%emt 00:00:02]} f6 {[%clk 01:04:19]} {[%emt 00:01:06]}
1/2-1/2

[Event "Amateur Tournament (ATO)"]
[Site "Biel, Switzerland"]
[Date "2026.07.17"]
[Round "4.5"]
[White "Schneuwly, Achim"]
[Black "Ernst, Heinz"]
[Result "1-0"]
[TimeControl "90+30+30sec/move"]
[WhiteTitle "-"]
[BlackTitle "-"]
[WhiteFideId "1303252"]
[BlackFideId "1303295"]
[WhiteElo "1933"]
[BlackElo "1848"]

1. e4 {[%clk 01:30:28]} d5 {[%clk 01:30:15]} {[%emt 19:10:38]} 2. exd5 {[%clk
01:30:46]} {[%emt 00:00:11]} Nf6 {[%clk 01:30:34]} {[%emt 00:00:11]} 3. d4
{[%clk 01:29:20]} {[%emt 00:01:56]} Nxd5 {[%clk 01:30:40]} {[%emt 00:00:24]} 4.
Nf3 {[%clk 01:28:20]} {[%emt 00:01:29]} Bg4 {[%clk 01:30:20]} {[%emt 00:00:50]}
5. Be2 {[%clk 01:28:41]} {[%emt 00:00:09]} e6 {[%clk 01:29:28]} {[%emt
00:01:22]} 6. O-O {[%clk 01:29:01]} {[%emt 00:00:10]} Be7 {[%clk 01:28:35]}
{[%emt 00:01:24]} 7. Ne5 {[%clk 01:19:16]} {[%emt 00:10:14]} Bxe2 {[%clk
01:28:07]} {[%emt 00:00:59]} 8. Qxe2 {[%clk 01:19:41]} {[%emt 00:00:05]} c6
{[%clk 01:28:07]} {[%emt 00:00:30]} 9. Nd2 {[%clk 01:13:55]} {[%emt 00:06:15]}
Nf6 {[%clk 01:23:52]} {[%emt 00:04:46]} 10. Ndf3 {[%clk 01:14:10]} {[%emt
00:00:14]} Nbd7 {[%clk 01:15:49]} {[%emt 00:08:34]} 11. Nxf7 {[%clk 01:11:48]}
{[%emt 00:02:53]} Kxf7 {[%clk 01:15:08]} {[%emt 00:01:10]} 12. Ng5+ {[%clk
01:12:11]} {[%emt 00:00:06]} Ke8 {[%clk 01:12:51]} {[%emt 00:02:48]} 13. Nxe6
{[%clk 01:11:13]} {[%emt 00:01:28]} Qa5 {[%clk 01:07:06]} {[%emt 00:06:15]} 14.
Bd2 {[%clk 01:04:03]} {[%emt 00:07:40]} Qb6 {[%clk 01:06:25]} {[%emt 00:01:11]}
15. Rfe1 {[%clk 01:03:28]} {[%emt 00:01:05]} Ng8 {[%clk 01:05:11]} {[%emt
00:01:44]} 16. Nxg7+ {[%clk 00:56:59]} {[%emt 00:06:59]} Kf7 {[%clk 01:02:35]}
{[%emt 00:03:06]} 17. Nf5 {[%clk 00:55:19]} {[%emt 00:02:09]} Qd8 {[%clk
00:58:51]} {[%emt 00:04:15]} 18. Qh5+ {[%clk 00:52:40]} {[%emt 00:03:07]} Kf8
{[%clk 00:58:42]} {[%emt 00:00:41]} 19. Bh6+ {[%clk 00:52:43]} {[%emt
00:00:27]} Nxh6 {[%clk 00:58:46]} {[%emt 00:00:26]} 20. Qxh6+ {[%emt 00:01:39]}
1-0

[Event "Amateur Tournament (ATO)"]
[Site "Biel, Switzerland"]
[Date "2026.07.17"]
[Round "4.6"]
[White "Aegerter, Fabrice"]
[Black "Betsche, Tim"]
[Result "1-0"]
[TimeControl "90+30+30sec/move"]
[WhiteTitle "-"]
[BlackTitle "-"]
[WhiteFideId "1344854"]
[BlackFideId "1347535"]
[WhiteElo "1915"]
[BlackElo "1840"]

1. d4 {[%clk 01:30:50]} {[%emt 00:00:08]} d5 {[%clk 01:30:53]} {[%emt
00:00:08]} 2. Nf3 {[%clk 01:30:51]} {[%emt 00:00:29]} Nf6 {[%clk 01:31:10]}
{[%emt 00:00:14]} 3. c4 {[%clk 01:31:10]} {[%emt 00:00:11]} e6 {[%clk
01:31:27]} {[%emt 00:00:14]} 4. g3 {[%clk 01:31:33]} {[%emt 00:00:06]} Be7
{[%clk 01:31:52]} {[%emt 00:00:05]} 5. Bg2 {[%clk 01:31:55]} {[%emt 00:00:06]}
O-O {[%clk 01:32:17]} {[%emt 00:00:07]} 6. O-O {[%clk 01:32:13]} {[%emt
00:00:11]} dxc4 {[%clk 01:32:43]} {[%emt 00:00:06]} 7. Nbd2 {[%clk 01:28:33]}
{[%emt 00:04:09]} c5 {[%clk 01:24:34]} {[%emt 00:08:39]} 8. Nxc4 {[%clk
01:25:51]} {[%emt 00:03:11]} Nc6 {[%clk 01:24:49]} {[%emt 00:00:16]} 9. Qb3
{[%clk 01:11:49]} {[%emt 00:14:31]} cxd4 {[%clk 01:07:20]} {[%emt 00:18:00]} 10.
Rd1 {[%clk 01:11:31]} {[%emt 00:00:46]} a5 {[%clk 01:03:11]} {[%emt 00:04:40]}
11. a4 {[%clk 00:50:45]} {[%emt 00:21:15]} Qd5 {[%clk 00:46:14]} {[%emt
00:17:28]} 12. Nfe5 {[%clk 00:36:01]} {[%emt 00:15:14]} Qc5 {[%clk 00:43:12]}
{[%emt 00:03:32]} 13. Nxc6 {[%clk 00:29:14]} {[%emt 00:07:17]} bxc6 {[%clk
00:43:32]} {[%emt 00:00:10]} 14. Bf4 {[%clk 00:29:25]} {[%emt 00:00:19]} Rd8
{[%clk 00:20:03]} {[%emt 00:23:59]} 15. Ne5 {[%clk 00:16:06]} {[%emt 00:13:48]}
Nd5 {[%clk 00:13:36]} {[%emt 00:06:59]} 16. Rac1 {[%clk 00:14:43]} {[%emt
00:01:52]} Qb4 {[%clk 00:13:42]} {[%emt 00:00:23]} 17. Qxb4 {[%clk 00:12:06]}
{[%emt 00:03:07]} Nxb4 {[%clk 00:14:08]} {[%emt 00:00:05]} 18. Nxc6 {[%clk
00:09:45]} {[%emt 00:02:52]} Nxc6 {[%clk 00:14:34]} {[%emt 00:00:03]} 19. Bxc6
{[%clk 00:09:39]} {[%emt 00:00:36]} Ra6 {[%clk 00:13:42]} {[%emt 00:01:22]} 20.
Bc7 {[%clk 00:09:29]} {[%emt 00:00:39]} Rxc6 {[%clk 00:11:51]} {[%emt
00:02:22]} 21. Bxd8 {[%clk 00:07:02]} {[%emt 00:02:55]} 1-0

[Event "Amateur Tournament (ATO)"]
[Site "Biel, Switzerland"]
[Date "2026.07.18"]
[Round "5.1"]
[White "Jahn, Thomas"]
[Black "Schneuwly, Achim"]
[Result "1-0"]
[TimeControl "90+30+30sec/move"]
[WhiteTitle "-"]
[BlackTitle "-"]
[WhiteFideId "34679430"]
[BlackFideId "1303252"]
[WhiteElo "1944"]
[BlackElo "1933"]

1. e4 {[%clk 01:30:54]} {[%emt 00:00:05]} c5 {[%clk 01:30:53]} {[%emt
00:00:08]} 2. Nf3 {[%clk 01:31:18]} {[%emt 00:00:07]} e6 {[%clk 01:31:17]}
{[%emt 00:00:06]} 3. d4 {[%clk 01:31:39]} {[%emt 00:00:08]} cxd4 {[%clk
01:31:41]} {[%emt 00:00:06]} 4. Nxd4 {[%clk 01:32:07]} {[%emt 00:00:02]} Nc6
{[%clk 01:31:47]} {[%emt 00:00:23]} 5. Nb5 {[%clk 01:30:45]} {[%emt 00:01:53]}
d6 {[%clk 01:30:40]} {[%emt 00:01:36]} 6. Bf4 {[%clk 01:31:10]} {[%emt
00:00:06]} e5 {[%clk 01:31:01]} {[%emt 00:00:09]} 7. Be3 {[%clk 01:31:37]}
{[%emt 00:00:03]} Nf6 {[%clk 01:29:21]} {[%emt 00:02:10]} 8. N1c3 {[%clk
01:31:19]} {[%emt 00:00:48]} Be6 {[%clk 01:29:18]} {[%emt 00:00:32]} 9. Bg5
{[%clk 01:31:24]} {[%emt 00:00:26]} Be7 {[%clk 01:28:58]} {[%emt 00:00:49]} 10.
Bxf6 {[%clk 01:31:46]} {[%emt 00:00:09]} gxf6 {[%clk 01:29:12]} {[%emt
00:00:15]} 11. Nd5 {[%clk 01:31:59]} {[%emt 00:00:18]} O-O {[%clk 01:20:52]}
{[%emt 00:08:51]} 12. Bd3 {[%clk 01:25:20]} {[%emt 00:07:08]} Kh8 {[%clk
01:15:46]} {[%emt 00:05:35]} 13. O-O {[%clk 01:14:18]} {[%emt 00:11:33]} Rg8
{[%clk 01:14:41]} {[%emt 00:01:35]} 14. Kh1 {[%clk 01:14:37]} {[%emt 00:00:11]}
Rc8 {[%clk 01:08:07]} {[%emt 00:07:03]} 15. Nbc3 {[%clk 01:14:16]} {[%emt
00:00:52]} Nd4 {[%clk 01:07:10]} {[%emt 00:01:26]} 16. Ne3 {[%clk 01:14:31]}
{[%emt 00:00:16]} Bf8 {[%clk 01:02:18]} {[%emt 00:05:22]} 17. Ncd5 {[%clk
01:03:45]} {[%emt 00:11:17]} Bh6 {[%clk 00:48:32]} {[%emt 00:14:15]} 18. f4
{[%clk 01:02:57]} {[%emt 00:01:18]} f5 {[%clk 00:18:18]} {[%emt 00:30:43]} 19.
exf5 {[%clk 00:58:20]} {[%emt 00:05:08]} Bxd5 {[%clk 00:18:41]} {[%emt
00:00:07]} 20. Nxd5 {[%clk 00:58:35]} {[%emt 00:00:15]} Rc5 {[%clk 00:18:55]}
{[%emt 00:00:16]} 21. Qh5 {[%clk 00:54:54]} {[%emt 00:04:11]} Rxd5 {[%clk
00:11:24]} {[%emt 00:08:01]} 22. Qxh6 {[%clk 00:55:15]} {[%emt 00:00:09]} Qf8
{[%clk 00:11:48]} {[%emt 00:00:06]} 23. Qh3 {[%clk 00:53:16]} {[%emt 00:02:28]}
Qg7 {[%clk 00:11:21]} {[%emt 00:00:58]} 24. f6 {[%clk 00:53:31]} {[%emt
00:00:14]} 1-0